fUST/lending_fUST_20250403
["ID","MTS","AMOUNT","RATE_DAILY","PERIOD"]
[357058725,1743665443844,-500.0,0.00019269,2]
[357058727,1743665443854,-504.13081042,0.00019269,2]
[357058728,1743665443863,-500.0,0.00019269,2]
[357058729,1743665443873,-505.53522553,0.00019269,2]
[357058730,1743665443883,-500.0,0.00019269,2]
[357058731,1743665443892,-487.35179608,0.00019269,2]
[357058732,1743665443902,-501.24241114,0.00019269,2]
[357058733,1743665443911,-500.0,0.00019269,2]
[357058734,1743665443921,-345.69006765,0.00019269,2]
[357058735,1743665443931,-526.56369922,0.00019269,2]
[357058736,1743665443940,-500.0,0.00019269,2]
[357058737,1743665443951,-151.0,0.00019269,2]
[357058738,1743665443963,-154.652974,0.00019269,2]
[357058739,1743665443972,-504.67465719,0.00019271,2]
[357058740,1743665443981,-199.81012916,0.00019442,2]
[357058741,1743665443990,-224.230165,0.00019442,2]
[357058742,1743665444001,-224.230165,0.00019442,2]
[357058743,1743665444010,-160.0,0.00019459,2]
[357058744,1743665444020,-2743.78152123,0.0001954,2]
[357058745,1743665444032,-5096.69844758,0.0001954,2]
[357058746,1743665444041,-151.0,0.0001954,2]
[357058747,1743665444050,-180.548012,0.0001954,2]
[357058748,1743665444060,-151.0,0.0001954,2]
[357058749,1743665444070,-151.0,0.0001954,2]
[357058750,1743665444079,-151.0,0.0001954,2]
[357058751,1743665444088,-151.0,0.0001954,2]
[357058752,1743665444097,-151.0,0.0001954,2]
[357058753,1743665444107,-224.230165,0.0001954,2]
[357058754,1743665444116,-224.230165,0.0001954,2]
[357058755,1743665444129,-151.0,0.0001954,2]
[357058756,1743665444139,-500.0,0.00019541,2]
[357058757,1743665444149,-500.0,0.00019541,2]
[357058758,1743665444159,-500.0,0.00019541,2]
[357058759,1743665444168,-500.0,0.00019541,2]
[357058760,1743665444178,-531.55860814,0.00019541,2]
[357058761,1743665444188,-500.0,0.00019541,2]
[357058762,1743665444197,-575.72,0.00019541,2]
[357058763,1743665444207,-500.0,0.00019541,2]
[357058764,1743665444217,-500.0,0.00019541,2]
[357058765,1743665444226,-275.618585,0.00019541,2]
[357058766,1743665444237,-235.64,0.00019541,2]
[357058767,1743665444247,-680.68,0.00019541,2]
[357058768,1743665444256,-500.0,0.00019541,2]
[357058769,1743665444266,-500.0,0.00019541,2]
[357058770,1743665444276,-500.0,0.00019541,2]
[357058771,1743665444285,-500.0,0.00019541,2]
[357058772,1743665444295,-500.0,0.00019541,2]
[357058773,1743665444305,-500.0,0.00019541,2]
[357058774,1743665444314,-500.0,0.00019541,2]
[357058775,1743665444324,-500.0,0.00019541,2]
[357058776,1743665444333,-500.0,0.00019541,2]
[357058777,1743665444343,-348.28822796,0.00019542,2]
[357058778,1743665444353,-500.0,0.00019542,2]
[357058779,1743665444363,-151.0,0.00019542,2]
[357058780,1743665444375,-151.0,0.00019542,2]
[357058781,1743665444385,-348.49868824,0.00019542,2]
[357058782,1743665444396,-500.0,0.00019542,2]
[357058783,1743665444406,-500.0,0.00019542,2]
[357058784,1743665444416,-151.0,0.00019542,2]
[357058785,1743665444426,-151.0,0.00019542,2]
[357058786,1743665444436,-500.0,0.00019542,2]
[357058787,1743665444447,-500.0,0.00019542,2]
[357058788,1743665444456,-500.0,0.00019542,2]
[357058789,1743665444466,-500.0,0.00019542,2]
[357058790,1743665444478,-500.0,0.00019542,2]
[357058791,1743665444487,-224.230165,0.00019542,2]
[357058792,1743665444497,-224.230165,0.00019542,2]
[357058793,1743665444506,-373.83,0.00019542,2]
[357058794,1743665444516,-500.0,0.00019543,2]
[357058795,1743665444536,-210.75432974,0.00019543,2]
[357058796,1743665444547,-151.0,0.00019543,2]
[357058797,1743665444558,-151.0,0.00019543,2]
[357058798,1743665444569,-224.230165,0.00019543,2]
[357058799,1743665444579,-224.230165,0.00019543,2]
[357058800,1743665444589,-27230.71020644,0.0001964,2]
[357058801,1743665444604,-3474.85240186,0.0001964,2]
[357058802,1743665444616,-4137.36301282,0.0001964,2]
[357058818,1743665446445,-225.38915554,0.00019038,2]
[357058820,1743665446455,-265.27281473,0.0001964,2]
[357058821,1743665446466,-28264.79157535,0.0001964,2]
[357058823,1743665446476,-166.279552,0.0001964,2]
[357058824,1743665446486,-151.0,0.0001964,2]
[357058825,1743665446495,-151.0,0.0001964,2]
[357058826,1743665446505,-151.0,0.0001964,2]
[357058828,1743665446515,-224.230165,0.0001964,2]
[357058829,1743665446525,-224.230165,0.0001964,2]
[357058830,1743665446535,-500.0,0.00019691,2]
[357058831,1743665446544,-518.06126556,0.00019691,2]
[357058832,1743665446554,-500.0,0.00019691,2]
[357058833,1743665446564,-500.0,0.00019691,2]
[357058834,1743665446574,-500.0,0.00019691,2]
[357058835,1743665446584,-500.0,0.00019691,2]
[357058836,1743665446595,-500.0,0.00019691,2]
[357058837,1743665446604,-510.06746759,0.00019732,2]
[357058838,1743665446613,-500.56678711,0.00019769,2]
[357058839,1743665446624,-500.0,0.00019769,2]
[357058840,1743665446633,-500.0,0.00019815,2]
[357058841,1743665446643,-500.0,0.00019815,2]
[357058842,1743665446652,-500.0,0.00019815,2]
[357058843,1743665446662,-500.0,0.00019815,2]
[357058844,1743665446671,-500.0,0.00019815,2]
[357058845,1743665446681,-500.0,0.00019815,2]
[357058846,1743665446691,-108.48485257,0.00019815,2]
[357058852,1743665516698,152.76,0.000249,31]
[357058853,1743665516758,152.76,0.000249,31]
[357058854,1743665516806,152.76,0.000249,31]
[357058855,1743665516862,152.76,0.000249,31]
[357058858,1743666118335,152.77,0.000249,31]
[357058859,1743666118390,152.77,0.000249,31]
[357058860,1743666118436,152.77,0.000249,31]
[357058896,1743666632332,-387.7312,0.0001826,2]
[357058898,1743666632344,-192.5366992,0.0001922,2]
[357058900,1743666632354,-160.0,0.00019251,2]
[357058902,1743666632364,-129.22097378,0.00019253,2]
[357058903,1743666632387,-30.77902622,0.00019253,2]
[357058904,1743666632397,-5093.40241949,0.00019257,2]
[357058905,1743666632446,-457.8874332,0.00019257,2]
[357058906,1743666632626,-1515.97,0.00019257,2]
[357058934,1743666638311,-5450.18651659,0.00019257,2]
[357058935,1743666638321,-300.0,0.00019257,2]
[357058936,1743666638331,-529.34556914,0.00019265,2]
[357058937,1743666638343,-534.19180285,0.00019265,2]
[357058938,1743666638352,-525.50718363,0.00019265,2]
[357058939,1743666638362,-554.61911595,0.00019265,2]
[357058940,1743666638371,-566.52077794,0.00019265,2]
[357058941,1743666638382,-544.91490468,0.00019265,2]
[357058942,1743666638392,-202.70840591,0.00019265,2]
[357058943,1743666638401,-651.8,0.00019265,2]
[357058944,1743666638411,-171.31280386,0.00019265,2]
[357058945,1743666638421,-541.23,0.00019265,2]
[357058946,1743666638431,-500.0,0.00019265,2]
[357058947,1743666638441,-500.0,0.00019265,2]
[357058948,1743666638451,-500.0,0.00019266,2]
[357058949,1743666638460,-500.0,0.00019266,2]
[357058950,1743666638469,-500.0,0.00019266,2]
[357058951,1743666638479,-561.35,0.00019266,2]
[357058952,1743666638490,-500.0,0.00019266,2]
[357058953,1743666638499,-500.0,0.00019266,2]
[357058954,1743666638509,-529.57409302,0.00019266,2]
[357058955,1743666638519,-621.45449203,0.00019266,2]
[357058956,1743666638528,-500.0,0.00019266,2]
[357058957,1743666638537,-500.0,0.00019266,2]
[357058958,1743666638547,-500.0,0.00019266,2]
[357058959,1743666638557,-500.0,0.00019266,2]
[357058960,1743666638567,-500.0,0.00019266,2]
[357058961,1743666638576,-500.0,0.00019266,2]
[357058962,1743666638585,-500.0,0.00019266,2]
[357058963,1743666638594,-549.87,0.00019266,2]
[357058964,1743666638603,-500.0,0.00019266,2]
[357058965,1743666638613,-500.0,0.00019266,2]
[357058966,1743666638622,-500.0,0.00019266,2]
[357058967,1743666638633,-500.0,0.00019266,2]
[357058968,1743666638642,-500.0,0.00019266,2]
[357058969,1743666638651,-500.0,0.00019266,2]
[357058970,1743666638660,-500.0,0.00019266,2]
[357058971,1743666638670,-500.0,0.00019266,2]
[357058972,1743666638679,-500.0,0.00019266,2]
[357058973,1743666638688,-500.0,0.00019266,2]
[357058974,1743666638697,-500.0,0.00019266,2]
[357058975,1743666638707,-500.0,0.00019266,2]
[357058976,1743666638716,-500.0,0.00019266,2]
[357058977,1743666638726,-500.0,0.00019266,2]
[357058978,1743666638735,-500.0,0.00019266,2]
[357058979,1743666638745,-500.0,0.00019266,2]
[357058980,1743666638754,-216.2012516,0.00019267,2]
[357058981,1743666638764,-504.94889831,0.00019267,2]
[357058982,1743666638773,-500.0,0.00019267,2]
[357058983,1743666638782,-500.0,0.00019267,2]
[357058984,1743666638792,-358.12706949,0.00019267,2]
[357058985,1743666638804,-141.87293051,0.00019267,2]
[357058986,1743666638814,-500.0,0.00019267,2]
[357058987,1743666638824,-563.13266482,0.00019267,2]
[357058988,1743666638833,-500.0,0.00019267,2]
[357058989,1743666638843,-217.86118524,0.00019267,2]
[357058990,1743666638852,-194.88321872,0.00019267,2]
[357059002,1743666640771,-99.99818521,0.00019267,2]
[357059003,1743666640781,-500.0,0.00019267,2]
[357059004,1743666640790,-187.97931393,0.00019267,2]
[357059005,1743666640800,-500.0,0.00019267,2]
[357059006,1743666640809,-500.0,0.00019267,2]
[357059007,1743666640819,-500.0,0.00019267,2]
[357059008,1743666640828,-500.0,0.00019267,2]
[357059009,1743666640837,-88.85450086,0.00019267,2]
[357059024,1743666643338,-798.56541706,0.00019166,2]
[357059059,1743666721051,152.78,0.000249,31]
[357059060,1743666721126,152.78,0.000249,31]
[357059061,1743666721215,152.78,0.000249,31]
[357059081,1743667324085,152.79,0.000249,31]
[357059082,1743667324131,152.79,0.000249,31]
[357059236,1743667838408,-1343.32768189,0.00019165,2]
[357059237,1743667838418,-761.49079245,0.00019178,7]
[357059238,1743667838432,-192.5366992,0.0001922,2]
[357059239,1743667838442,-300.0,0.0001925,2]
[357059240,1743667838451,-12517.44636928,0.00019251,2]
[357059241,1743667838460,-160.0,0.00019251,2]
[357059242,1743667838470,-160.0,0.00019251,2]
[357059243,1743667838479,-682.27,0.00019263,2]
[357059244,1743667838488,-500.0,0.00019263,2]
[357059245,1743667838497,-500.0,0.00019263,2]
[357059247,1743667838507,-500.0,0.00019263,2]
[357059248,1743667838517,-402.14,0.00019264,2]
[357059249,1743667838526,-500.0,0.00019264,2]
[357059251,1743667838536,-530.47278347,0.00019264,2]
[357059253,1743667838545,-500.0,0.00019264,2]
[357059255,1743667838555,-600.53235295,0.00019264,2]
[357059257,1743667838564,-457.29825483,0.00019264,2]
[357059259,1743667838573,-218.81611838,0.00019264,2]
[357059262,1743667838584,-500.0,0.00019264,2]
[357059264,1743667838593,-500.0,0.00019264,2]
[357059266,1743667838603,-500.0,0.00019264,2]
[357059268,1743667838612,-500.0,0.00019264,2]
[357059270,1743667838621,-428.90610556,0.00019264,2]
[357059497,1743667926808,152.79,0.000249,31]
[357059498,1743667926861,152.79,0.000249,31]
[357059501,1743668529450,152.79,0.000249,31]
[357059502,1743668529512,152.79,0.000249,31]
[357059586,1743669040766,-203.1696324,0.00018256,2]
[357059587,1743669040776,-350.6978504,0.00018332,2]
[357059588,1743669040786,-230.5954076,0.00018684,2]
[357059589,1743669040797,-1433.79069228,0.00019162,2]
[357059590,1743669040806,-300.0,0.0001925,2]
[357059591,1743669040816,-151.0,0.0001925,2]
[357059592,1743669040826,-5813.59267712,0.0001925,2]
[357059593,1743669040835,-210.09354072,0.00019251,2]
[357059594,1743669040848,-200.0,0.00019251,2]
[357059595,1743669040858,-160.0,0.00019251,2]
[357059596,1743669040868,-516.44729318,0.0001926,2]
[357059597,1743669040878,-500.0,0.00019261,2]
[357059598,1743669040887,-500.0,0.00019261,2]
[357059599,1743669040897,-500.0,0.00019261,2]
[357059600,1743669040906,-500.0,0.00019261,2]
[357059601,1743669040915,-500.0,0.00019261,2]
[357059603,1743669041070,-500.0,0.00019261,2]
[357059604,1743669041090,-500.0,0.00019261,2]
[357059605,1743669041100,-500.0,0.00019261,2]
[357059606,1743669041113,-500.0,0.00019261,2]
[357059607,1743669041122,-500.0,0.00019261,2]
[357059608,1743669041131,-500.0,0.00019261,2]
[357059609,1743669041142,-500.0,0.00019261,2]
[357059610,1743669041151,-653.84,0.00019261,2]
[357059611,1743669041161,-576.76,0.00019261,2]
[357059612,1743669041170,-500.0,0.00019261,2]
[357059613,1743669041180,-500.0,0.00019261,2]
[357059614,1743669041191,-500.0,0.00019261,2]
[357059615,1743669041201,-500.0,0.00019261,2]
[357059616,1743669041210,-500.0,0.00019261,2]
[357059617,1743669041220,-500.0,0.00019261,2]
[357059618,1743669041229,-500.0,0.00019261,2]
[357059619,1743669041239,-500.0,0.00019261,2]
[357059620,1743669041250,-500.0,0.00019261,2]
[357059621,1743669041259,-511.76,0.00019261,2]
[357059622,1743669041269,-229.64258446,0.00019261,2]
[357059623,1743669041278,-500.0,0.00019261,2]
[357059624,1743669041288,-550.45,0.00019261,2]
[357059625,1743669041297,-500.0,0.00019261,2]
[357059626,1743669041306,-500.0,0.00019261,2]
[357059627,1743669041315,-500.0,0.00019261,2]
[357059628,1743669041324,-500.0,0.00019261,2]
[357059629,1743669041334,-500.0,0.00019261,2]
[357059630,1743669041343,-500.0,0.00019261,2]
[357059631,1743669041353,-500.0,0.00019261,2]
[357059632,1743669041362,-500.0,0.00019261,2]
[357059633,1743669041371,-527.13,0.00019261,2]
[357059634,1743669041381,-500.0,0.00019261,2]
[357059635,1743669041391,-168.40011066,0.00019261,2]
[357059636,1743669041400,-154.71305417,0.00019261,2]
[357059637,1743669041410,-193.41204245,0.00019261,3]
[357059638,1743669041419,-402.83528861,0.00019261,3]
[357059639,1743669041427,-500.0,0.00019262,2]
[357059640,1743669041437,-500.0,0.00019262,2]
[357059641,1743669041447,-490.25705535,0.00019262,2]
[357059642,1743669041456,-579.3,0.00019262,2]
[357059643,1743669041465,-500.0,0.00019262,2]
[357059644,1743669041475,-500.0,0.00019262,2]
[357059645,1743669041484,-500.0,0.00019262,2]
[357059646,1743669041494,-395.49889174,0.00019262,2]
[357059647,1743669041503,-500.0,0.00019262,2]
[357059648,1743669041514,-87154.85110147,0.00019262,2]
[357059657,1743669046792,-1185.1146082,0.00019262,2]
[357059660,1743669062289,810.0,0.0002,30]
[357059666,1743669132774,152.8,0.000249,31]
[357059667,1743669132827,152.8,0.000249,31]
[357059680,1743669735187,152.81,0.000249,31]
[357059681,1743669735248,152.81,0.000249,31]
[357059682,1743669735302,152.81,0.000249,31]
[357059683,1743669735368,152.81,0.000249,31]
[357059684,1743669735424,152.81,0.000249,31]
[357059685,1743669735462,152.81,0.000249,31]
[357059686,1743669735505,152.81,0.000249,31]
[357059687,1743669735548,152.81,0.000249,31]
[357059695,1743670023448,-287.1933,0.00018136,2]
[357059753,1743670237807,-241.8179862,0.00017774,2]
[357059754,1743670237817,-583.4702464,0.00017969,2]
[357059755,1743670237827,-336.2023666,0.00017986,2]
[357059756,1743670237836,-2.776165,0.00018136,2]
[357059757,1743670237846,-300.0,0.00018226,2]
[357059758,1743670237856,-9441.8708644,0.00018227,2]
[357059759,1743670237865,-152.79560844,0.0001914,2]
[357059760,1743670237875,-180.15735705,0.00019151,2]
[357059761,1743670237885,-12517.44636928,0.00019153,2]
[357059762,1743670237894,-500.0,0.00019153,2]
[357059763,1743670237911,-500.0,0.00019153,2]
[357059764,1743670237920,-500.0,0.00019153,2]
[357059765,1743670237929,-626.6,0.00019154,2]
[357059766,1743670237939,-500.0,0.00019154,2]
[357059768,1743670237948,-500.0,0.00019154,2]
[357059770,1743670237957,-500.0,0.00019154,2]
[357059772,1743670237966,-300.61499968,0.00019154,2]
[357059773,1743670237975,-500.0,0.00019155,2]
[357059775,1743670237985,-500.0,0.00019155,2]
[357059776,1743670237994,-552.84053322,0.00019155,2]
[357059778,1743670238003,-500.0,0.00019155,2]
[357059779,1743670238013,-500.0,0.00019155,2]
[357059781,1743670238023,-500.0,0.00019155,2]
[357059783,1743670238032,-500.0,0.00019155,2]
[357059785,1743670238042,-500.0,0.00019155,2]
[357059786,1743670238051,-500.0,0.00019155,2]
[357059787,1743670238060,-606.38751856,0.00019155,2]
[357059788,1743670238070,-500.0,0.00019155,2]
[357059789,1743670238080,-238.54,0.00019155,2]
[357059790,1743670238089,-500.0,0.00019155,2]
[357059791,1743670238099,-500.0,0.00019155,2]
[357059792,1743670238108,-500.0,0.00019155,2]
[357059793,1743670238120,-500.0,0.00019155,2]
[357059795,1743670238133,-500.0,0.00019155,2]
[357059796,1743670238142,-500.0,0.00019155,2]
[357059797,1743670238151,-500.0,0.00019155,2]
[357059798,1743670238161,-500.0,0.00019155,2]
[357059799,1743670238170,-500.0,0.00019155,2]
[357059800,1743670238179,-6140.22612769,0.00019155,2]
[357059801,1743670238189,-505.16,0.00019156,2]
[357059802,1743670238198,-151.0,0.00019161,2]
[357059803,1743670238207,-209.796495,0.00019161,2]
[357059804,1743670238217,-151.0,0.00019161,2]
[357059805,1743670238227,-151.0,0.00019161,2]
[357059806,1743670238236,-151.0,0.00019161,2]
[357059807,1743670238245,-40340.58540341,0.00019161,2]
[357059808,1743670238256,-462.969998,0.00019161,2]
[357059814,1743670240317,-1253.34050202,0.00019161,2]
[357059824,1743670242885,-941.65180245,0.00019161,2]
[357059864,1743670245820,-19336.70540902,0.00019161,2]
[357059865,1743670245831,-160.0,0.00019249,2]
[357059866,1743670245841,-201.41764431,0.00019259,3]
[357059867,1743670245851,-151.0,0.00019259,2]
[357059868,1743670245862,-151.0,0.00019259,2]
[357059869,1743670245872,-207.15,0.00019259,2]
[357059870,1743670245882,-500.0,0.00019259,2]
[357059871,1743670245892,-20742.41365121,0.00019259,2]
[357059891,1743670332307,156.657299,0.00025,30]
[357059892,1743670337264,152.88,0.000249,31]
[357059896,1743670517184,4702.34988073,0.00025,30]
[357059899,1743670786720,183.9310158,0.00013699,2]
[357059901,1743670807618,-1380.5981,0.00017949,2]
[357059902,1743670844480,5000.0,0.00025,30]
[357059903,1743670921662,-1551.6381,0.00017949,2]
[357059904,1743670939817,152.88,0.000249,31]
[357059906,1743671023151,-1076.3439,0.0001777,2]
[357059934,1743671431965,-334.43864146,0.00017949,2]
[357059935,1743671431975,-204.2709962,0.00017974,2]
[357059936,1743671431986,-300.0,0.00018899,2]
[357059937,1743671431995,-5494.11791635,0.000189,2]
[357059938,1743671432005,-1254.56685578,0.000189,2]
[357059939,1743671432015,-160.0,0.00018966,2]
[357059940,1743671432025,-200.0,0.00018989,2]
[357059941,1743671432035,-2328.82,0.0001899,3]
[357059942,1743671432044,-1164.41,0.0001899,3]
[357059943,1743671432053,-361.09994784,0.0001899,3]
[357059944,1743671432065,-221.11005216,0.0001899,3]
[357059945,1743671432075,-291.1,0.0001899,3]
[357059946,1743671432085,-873.34,0.0001899,3]
[357059947,1743671432094,-500.0,0.00018999,2]
[357059948,1743671432104,-296.14630767,0.00018999,2]
[357059949,1743671432114,-500.0,0.00018999,2]
[357059950,1743671432123,-500.0,0.00018999,2]
[357059951,1743671432132,-500.0,0.00018999,2]
[357059952,1743671432142,-500.0,0.00018999,2]
[357059953,1743671432151,-206.39503624,0.00018999,2]
[357059955,1743671432160,-500.0,0.00018999,2]
[357059957,1743671432170,-500.0,0.00018999,2]
[357059959,1743671432179,-500.0,0.00018999,2]
[357059961,1743671432188,-500.0,0.00018999,2]
[357059963,1743671432198,-600.49,0.00018999,2]
[357059965,1743671432207,-500.0,0.00018999,2]
[357059967,1743671432216,-500.0,0.00018999,2]
[357059968,1743671432225,-500.0,0.00018999,2]
[357059969,1743671432238,-500.0,0.00018999,2]
[357059970,1743671432249,-500.0,0.00018999,2]
[357059971,1743671432259,-500.0,0.00018999,2]
[357059972,1743671432268,-500.0,0.00018999,2]
[357059973,1743671432278,-27238.39385417,0.00019,2]
[357059974,1743671432290,-29856.00537763,0.00019,2]
[357059990,1743671440167,-857.05877404,0.00017974,2]
[357059991,1743671441395,-9.0187551,0.00017974,2]
[357059992,1743671441407,-6257.73596728,0.00017974,2]
[357060004,1743671443070,-9613.35047588,0.00017974,2]
[357060005,1743671443080,-7578.20501319,0.00019,2]
[357060006,1743671443112,-10965.64000895,0.00019,2]
[357060011,1743671541466,152.88,0.000249,31]
[357060012,1743671631583,-268.0,0.00017979,2]
[357060013,1743671641124,-186.92266443,0.00017799,2]
[357060015,1743671654164,-81.07733557,0.00017799,2]
[357060016,1743671654185,-69.92266443,0.00017979,2]
[357060017,1743671662367,-182.9538297,0.00017979,2]
[357060022,1743672142865,152.89,0.000249,31]
[357060023,1743672142918,152.89,0.000249,31]
[357060024,1743672142984,152.89,0.000249,31]
[357060025,1743672143043,152.89,0.000249,31]
[357060026,1743672143166,152.89,0.000249,31]
[357060027,1743672143219,152.89,0.000249,31]
[357060028,1743672143299,152.89,0.000249,31]
[357060030,1743672269635,2157.39,0.00010959,2]
[357060031,1743672280141,1797.83,0.00010959,2]
[357060032,1743672290583,1498.19,0.00010959,2]
[357060033,1743672301062,1248.49,0.00010959,2]
[357060034,1743672311775,1040.41,0.00010959,2]
[357060035,1743672322255,867.01,0.00010959,2]
[357060036,1743672332721,722.5,0.00010959,2]
[357060038,1743672343232,602.09,0.00010959,2]
[357060039,1743672353717,501.74,0.00010959,2]
[357060040,1743672364182,418.12,0.00010959,2]
[357060041,1743672374638,348.43,0.00010959,2]
[357060042,1743672385343,290.36,0.00010959,2]
[357060043,1743672395856,241.96,0.00010959,2]
[357060044,1743672406594,201.64,0.00010959,2]
[357060045,1743672417059,168.03,0.00010959,2]
[357060047,1743672427523,840.18,0.00010959,2]
[357060086,1743672632306,-187.6237175,0.00016927,2]
[357060087,1743672632316,-300.0,0.00016984,2]
[357060088,1743672632327,-23099.2999098,0.00016985,2]
[357060089,1743672632336,-196.2234246,0.00017503,2]
[357060090,1743672632347,-334.9598995,0.00017503,2]
[357060091,1743672632357,-819.8578655,0.00017527,2]
[357060092,1743672632366,-601.759339,0.00017698,2]
[357060093,1743672632376,-1097.74599879,0.00017887,2]
[357060094,1743672632386,-808.11007559,0.00017978,2]
[357060095,1743672632396,-1105.12021067,0.00017987,2]
[357060096,1743672632406,-207.61401779,0.00017987,2]
[357060097,1743672632417,-378.10298322,0.00017987,2]
[357060098,1743672632427,-189.60490458,0.00017987,2]
[357060099,1743672632437,-575.47,0.00017987,2]
[357060100,1743672632447,-500.0,0.00017987,2]
[357060101,1743672632457,-240.18884199,0.00017987,2]
[357060102,1743672632467,-500.0,0.00017987,2]
[357060103,1743672632477,-500.0,0.00017987,2]
[357060104,1743672632487,-500.0,0.00017987,2]
[357060105,1743672632497,-500.0,0.00017987,2]
[357060106,1743672632508,-500.0,0.00017987,2]
[357060107,1743672632518,-500.0,0.00017987,2]
[357060108,1743672632527,-15767.49984569,0.00017987,2]
[357060109,1743672632540,-431.68,0.00017987,2]
[357060110,1743672632552,-1004.738,0.00017987,2]
[357060111,1743672632566,-722.2920993,0.00017987,2]
[357060120,1743672640188,-8597.84092265,0.00017987,2]
[357060121,1743672640201,-612.58945232,0.00017988,2]
[357060122,1743672640214,-375.29502208,0.00017988,2]
[357060123,1743672640224,-285.92,0.00017988,2]
[357060124,1743672640234,-500.0,0.00017988,2]
[357060125,1743672640245,-500.0,0.00017988,2]
[357060126,1743672640255,-500.0,0.00017988,2]
[357060127,1743672640264,-500.0,0.00017988,2]
[357060128,1743672640274,-412.88852546,0.00017988,2]
[357060129,1743672640286,-500.0,0.00017988,2]
[357060130,1743672640296,-500.0,0.00017988,2]
[357060131,1743672640305,-500.0,0.00017988,2]
[357060132,1743672640315,-500.0,0.00017988,2]
[357060133,1743672640325,-500.0,0.00017988,2]
[357060134,1743672640335,-500.0,0.00017988,2]
[357060135,1743672640344,-500.0,0.00017988,2]
[357060136,1743672640353,-500.0,0.00017988,2]
[357060137,1743672640363,-500.0,0.00017988,2]
[357060138,1743672640373,-120000.61583418,0.00017988,2]
[357060146,1743672646102,-275.16655845,0.00017988,2]
[357060150,1743672941378,888.45,0.00010959,2]
[357060151,1743673136623,219.0,0.00010959,2]
[357060152,1743673147150,182.5,0.00010959,2]
[357060155,1743673150362,9035.2160247,0.00025,30]
[357060156,1743673157968,152.08,0.00010959,2]
[357060157,1743673168373,760.44,0.00010959,2]
[357060158,1743673183910,300.8,0.00025,30]
[357060179,1743673782512,-287.1933,0.00016033,2]
[357060196,1743673832333,-480.4954255,0.00016065,2]
[357060197,1743673832343,-126.34709539,0.0001665,2]
[357060198,1743673832355,-173.65290461,0.0001665,2]
[357060199,1743673832364,-2642.87804783,0.00016651,2]
[357060200,1743673832390,-2007.73760735,0.00016651,2]
[357060276,1743673840721,-642.48800007,0.00016651,2]
[357060732,1743673846508,-4706.89634475,0.00016651,2]
[357060733,1743673846520,-300.87967,0.0001686,2]
[357060734,1743673846530,-500.0,0.00016984,2]
[357060735,1743673846540,-500.0,0.00016984,2]
[357060736,1743673846554,-500.0,0.00016984,2]
[357060737,1743673846564,-5000.0,0.00017,2]
[357060738,1743673846574,-396.53967521,0.00017257,2]
[357060739,1743673846584,-500.0,0.00017257,2]
[357060740,1743673846594,-36749.01162017,0.00017257,2]
[357060743,1743673863083,-250.0,0.00016666,2]
[357060744,1743673892290,20000.0,0.00024,31]
[357060745,1743673906942,168.2,0.00010959,2]
[357060746,1743673934136,156.657299,0.000245,30]
[357060747,1743673937911,151.0,0.00010959,2]